[Event "15e Open International de Quenza"]
[Site "Quenza"]
[Date "2026.07.05"]
[Round "9.8"]
[White "WEBB, Laurence E"]
[Black "RELANGE, Eloi"]
[Result "0-1"]
[TimeControl "5min+3s"]
[WhiteTitle "FM"]
[BlackTitle "GM"]
[WhiteFideId "-"]
[BlackFideId "-"]
[WhiteElo "2200"]
[BlackElo "2416"]

1. e4 {[%clk 00:05:03]} {[%emt 00:00:02]} c5 {[%clk 00:05:03]} {[%emt
00:00:01]} 2. Nf3 {[%clk 00:05:03]} {[%emt 00:00:01]} Nc6 {[%clk 00:05:03]}
{[%emt 00:00:01]} 3. Bb5 {[%clk 00:05:03]} {[%emt 00:00:02]} g6 {[%clk
00:05:03]} {[%emt 00:00:02]} 4. O-O {[%clk 00:05:03]} {[%emt 00:00:03]} Bg7
{[%clk 00:05:03]} 5. Re1 {[%clk 00:05:03]} {[%emt 00:00:02]} Nf6 {[%clk
00:05:01]} {[%emt 00:00:05]} 6. e5 {[%clk 00:05:03]} {[%emt 00:00:03]} Nd5
{[%clk 00:05:01]} 7. Nc3 {[%clk 00:05:03]} {[%emt 00:00:01]} Nc7 {[%clk
00:05:01]} {[%emt 00:00:02]} 8. Bxc6 {[%clk 00:04:58]} {[%emt 00:00:08]} dxc6
{[%clk 00:05:01]} {[%emt 00:00:01]} 9. Ne4 {[%clk 00:04:55]} {[%emt 00:00:06]}
b6 {[%clk 00:05:01]} {[%emt 00:00:03]} 10. Nf6+ {[%clk 00:04:30]} {[%emt
00:00:28]} Kf8 {[%clk 00:04:59]} {[%emt 00:00:05]} 11. Ne4 {[%clk 00:04:30]}
{[%emt 00:00:02]} Ne6 {[%clk 00:04:48]} {[%emt 00:00:14]} 12. d3 {[%clk
00:04:25]} {[%emt 00:00:08]} h6 {[%clk 00:04:47]} {[%emt 00:00:04]} 13. h3
{[%clk 00:04:14]} {[%emt 00:00:13]} a5 {[%clk 00:04:47]} {[%emt 00:00:02]} 14.
a4 {[%clk 00:04:10]} {[%emt 00:00:07]} Ra7 {[%clk 00:04:47]} {[%emt 00:00:02]}
15. Qe2 {[%clk 00:03:58]} {[%emt 00:00:15]} Kg8 {[%clk 00:04:40]} {[%emt
00:00:10]} 16. b3 {[%clk 00:03:55]} {[%emt 00:00:06]} Qd5 {[%clk 00:04:27]}
{[%emt 00:00:15]} 17. Bb2 {[%clk 00:03:48]} {[%emt 00:00:10]} Nd4 {[%clk
00:04:20]} {[%emt 00:00:10]} 18. Bxd4 {[%clk 00:03:40]} {[%emt 00:00:11]} cxd4
{[%clk 00:04:20]} {[%emt 00:00:02]} 19. Ng3 {[%clk 00:03:30]} {[%emt 00:00:13]}
Be6 {[%clk 00:04:06]} {[%emt 00:00:17]} 20. Nd2 {[%clk 00:03:11]} {[%emt
00:00:21]} Kh7 {[%clk 00:04:04]} {[%emt 00:00:05]} 21. f4 {[%clk 00:02:57]}
{[%emt 00:00:17]} Re8 {[%clk 00:04:03]} {[%emt 00:00:04]} 22. Rf1 {[%clk
00:02:55]} {[%emt 00:00:06]} f5 {[%clk 00:03:57]} {[%emt 00:00:09]} 23. exf6
{[%clk 00:02:46]} {[%emt 00:00:12]} exf6 {[%clk 00:03:57]} {[%emt 00:00:02]} 24.
f5 {[%clk 00:02:35]} {[%emt 00:00:14]} Bf7 {[%clk 00:03:57]} {[%emt 00:00:01]}
25. Nde4 {[%clk 00:02:16]} {[%emt 00:01:32]} Qe5 {[%emt 00:00:36]} 26. Qf3 g5
{[%clk 00:02:01]} {[%emt 00:00:19]} 27. Rae1 {[%clk 00:02:06]} {[%emt
00:00:13]} Qd5 {[%clk 00:01:50]} {[%emt 00:00:14]} 28. Nh5 {[%clk 00:01:58]}
{[%emt 00:00:11]} Qd8 {[%clk 00:01:50]} 29. Nxg7 {[%clk 00:01:14]} {[%emt
00:00:47]} Kxg7 {[%clk 00:01:50]} {[%emt 00:00:02]} 30. Ng3 {[%clk 00:01:09]}
{[%emt 00:00:08]} Bd5 {[%clk 00:01:35]} {[%emt 00:00:18]} 31. Qf2 {[%clk
00:00:50]} {[%emt 00:00:21]} c5 {[%clk 00:01:32]} {[%emt 00:00:06]} 32. Rxe8
{[%clk 00:00:50]} {[%emt 00:00:04]} Qxe8 {[%clk 00:01:32]} {[%emt 00:00:01]} 33.
Re1 {[%clk 00:00:43]} {[%emt 00:00:09]} Re7 {[%clk 00:01:32]} {[%emt 00:00:01]}
34. Rxe7+ {[%clk 00:00:37]} {[%emt 00:00:10]} Qxe7 {[%clk 00:01:32]} 35. Qe2
{[%clk 00:00:37]} Qe5 {[%clk 00:01:16]} {[%emt 00:00:19]} 36. Qf2 {[%clk
00:00:27]} Bc6 {[%clk 00:01:16]} 37. Nh5+ {[%clk 00:00:27]} Kf7 {[%clk
00:01:16]} 38. Ng3 {[%clk 00:00:27]} Qd5 {[%clk 00:01:16]} 39. Qe2 {[%clk
00:00:27]} Kf8 {[%clk 00:01:16]} 40. Ne4 {[%clk 00:00:27]} Qxf5 {[%clk
00:01:16]} 41. Ng3 {[%clk 00:00:27]} Qe5 {[%clk 00:01:16]} 42. Kf2 {[%clk
00:00:27]} Qxe2+ {[%clk 00:01:16]} 43. Nxe2 {[%clk 00:00:27]} Kf7 {[%clk
00:00:54]} {[%emt 00:01:05]} 44. g3 {[%clk 00:00:04]} {[%emt 00:01:13]} f5
{[%clk 00:00:24]} 45. h4 {[%clk 00:00:04]} Kf6 {[%clk 00:00:24]} 46. hxg5+
{[%clk 00:00:04]} hxg5 {[%clk 00:00:24]} 47. Ng1 {[%clk 00:00:04]} {[%emt
00:00:09]} b5 {[%clk 00:00:23]} 48. axb5 {[%clk 00:00:04]} Bxb5 {[%clk
00:00:23]} 0-1

[Event "15e Open International de Quenza"]
[Site "Quenza"]
[Date "2026.07.05"]
[Round "9.14"]
[White "GERONIMI, Paul-Antoine"]
[Black "DELADERRIERE, Calypso"]
[Result "0-1"]
[TimeControl "5min+3s"]
[WhiteTitle "-"]
[BlackTitle "-"]
[WhiteFideId "-"]
[BlackFideId "-"]
[WhiteElo "1844"]
[BlackElo "2074"]

1. e4 {[%clk 00:05:03]} {[%emt 00:00:03]} c5 {[%clk 00:05:03]} {[%emt
00:00:03]} 2. Nf3 {[%clk 00:05:03]} {[%emt 00:00:02]} e6 {[%clk 00:05:03]} 3.
d4 {[%clk 00:04:57]} {[%emt 00:00:08]} cxd4 {[%clk 00:05:03]} {[%emt 00:00:01]}
4. Nxd4 {[%clk 00:04:57]} a6 {[%clk 00:05:03]} {[%emt 00:00:02]} 5. Be3 {[%clk
00:04:18]} {[%emt 00:00:42]} Nf6 {[%clk 00:05:01]} {[%emt 00:00:06]} 6. Nc3
{[%clk 00:04:18]} {[%emt 00:00:02]} Qc7 {[%clk 00:04:58]} {[%emt 00:00:06]} 7.
Bd3 {[%clk 00:04:04]} {[%emt 00:00:17]} b5 {[%clk 00:04:58]} {[%emt 00:00:02]}
8. a4 {[%clk 00:04:03]} {[%emt 00:00:04]} b4 {[%clk 00:04:57]} {[%emt
00:00:04]} 9. Nce2 {[%clk 00:04:03]} {[%emt 00:00:02]} Bb7 {[%clk 00:04:57]}
{[%emt 00:00:02]} 10. f3 {[%clk 00:04:03]} {[%emt 00:00:02]} Be7 {[%clk
00:04:41]} {[%emt 00:00:18]} 11. Qd2 {[%clk 00:03:50]} {[%emt 00:00:16]} O-O
{[%clk 00:04:37]} {[%emt 00:00:07]} 12. a5 {[%clk 00:03:27]} {[%emt 00:00:26]}
d5 {[%clk 00:04:36]} {[%emt 00:00:04]} 13. exd5 {[%clk 00:02:44]} {[%emt
00:00:46]} Bxd5 {[%clk 00:04:25]} {[%emt 00:00:14]} 14. Nb3 {[%clk 00:02:36]}
{[%emt 00:00:10]} Nbd7 {[%clk 00:04:24]} {[%emt 00:00:04]} 15. O-O {[%clk
00:02:27]} {[%emt 00:00:11]} Rfd8 {[%clk 00:04:19]} {[%emt 00:00:10]} 16. Rfc1
{[%clk 00:02:07]} {[%emt 00:00:23]} Qb7 {[%clk 00:04:09]} {[%emt 00:00:12]} 17.
Ned4 {[%clk 00:01:27]} {[%emt 00:00:43]} Ne5 {[%clk 00:04:04]} {[%emt
00:00:08]} 18. Qf2 {[%clk 00:01:13]} {[%emt 00:00:17]} Bxb3 {[%clk 00:03:16]}
{[%emt 00:00:52]} 19. Nxb3 {[%clk 00:01:13]} Nxd3 {[%clk 00:03:16]} {[%emt
00:00:01]} 20. cxd3 {[%clk 00:01:13]} Rxd3 {[%clk 00:03:15]} {[%emt 00:00:04]}
21. Nc5 {[%clk 00:01:13]} {[%emt 00:00:03]} Bxc5 {[%clk 00:03:15]} {[%emt
00:00:03]} 22. Bxc5 {[%clk 00:01:13]} Rad8 {[%clk 00:03:07]} {[%emt 00:00:10]}
23. Bb6 {[%clk 00:01:02]} {[%emt 00:00:14]} R8d7 {[%clk 00:02:56]} {[%emt
00:00:14]} 24. Qg3 {[%clk 00:00:53]} {[%emt 00:00:12]} h6 {[%clk 00:02:53]}
{[%emt 00:00:05]} 25. Rc7 {[%clk 00:00:44]} {[%emt 00:00:12]} Rd1+ {[%clk
00:02:25]} {[%emt 00:00:31]} 26. Rxd1 {[%clk 00:00:42]} {[%emt 00:00:05]} Rxd1+
{[%clk 00:02:25]} {[%emt 00:00:02]} 27. Kf2 {[%clk 00:00:42]} {[%emt 00:00:01]}
Qd5 {[%clk 00:02:20]} {[%emt 00:00:09]} 28. Be3 {[%clk 00:00:26]} {[%emt
00:00:19]} Qd3 {[%clk 00:02:11]} {[%emt 00:00:12]} 29. Rc8+ {[%clk 00:00:19]}
{[%emt 00:00:10]} Kh7 {[%clk 00:02:11]} 30. Qb8 {[%clk 00:00:19]} Qf1+ {[%clk
00:02:02]} {[%emt 00:00:12]} 31. Kg3 {[%clk 00:00:19]} Nh5+ {[%clk 00:01:52]}
{[%emt 00:00:12]} 32. Kh3 {[%clk 00:00:18]} {[%emt 00:00:04]} Qd3 {[%clk
00:01:31]} {[%emt 00:00:24]} 33. Rh8+ {[%clk 00:00:17]} {[%emt 00:00:04]} Kg6
{[%clk 00:01:31]} {[%emt 00:00:02]} 34. Qe5 {[%clk 00:00:17]} {[%emt 00:00:02]}
Re1 {[%clk 00:01:07]} {[%emt 00:00:27]} 35. g4 {[%clk 00:00:11]} {[%emt
00:00:09]} Nf6 {[%clk 00:00:38]} {[%emt 00:00:33]} 36. Qc5 {[%clk 00:00:06]}
{[%emt 00:00:07]} Rxe3 {[%clk 00:00:33]} {[%emt 00:00:08]} 37. Qxb4 {[%clk
00:00:04]} {[%emt 00:00:05]} Rxf3+ {[%clk 00:00:33]} {[%emt 00:00:02]} 38. Kg2
{[%clk 00:00:04]} {[%emt 00:00:02]} Qe2+ {[%clk 00:00:33]} {[%emt 00:00:02]} 39.
Kh1 {[%clk 00:00:04]} {[%emt 00:00:01]} Rf1# {[%clk 00:00:11]} 0-1

[Event "15e Open International de Quenza"]
[Site "Quenza"]
[Date "2026.07.05"]
[Round "9.6"]
[White "MAZE, Sebastien"]
[Black "YANKELEVICH, Lev"]
[Result "1-0"]
[TimeControl "5min+3s"]
[WhiteTitle "GM"]
[BlackTitle "GM"]
[WhiteFideId "-"]
[BlackFideId "-"]
[WhiteElo "2455"]
[BlackElo "2373"]

1. e4 {[%clk 00:05:03]} {[%emt 00:00:01]} e5 {[%clk 00:05:03]} {[%emt
00:00:02]} 2. Nf3 {[%clk 00:05:03]} Nc6 {[%clk 00:05:03]} {[%emt 00:00:03]} 3.
Bb5 {[%clk 00:05:03]} {[%emt 00:00:01]} a6 {[%clk 00:05:03]} {[%emt 00:00:02]}
4. Ba4 {[%clk 00:05:03]} Nf6 {[%clk 00:05:03]} {[%emt 00:00:01]} 5. Nc3 {[%clk
00:05:03]} b5 {[%clk 00:04:55]} {[%emt 00:00:11]} 6. Bb3 {[%clk 00:05:03]} Bc5
{[%clk 00:04:55]} {[%emt 00:00:01]} 7. a4 {[%clk 00:05:03]} {[%emt 00:00:01]}
b4 {[%clk 00:04:39]} {[%emt 00:00:20]} 8. Nd5 {[%clk 00:05:03]} {[%emt
00:00:01]} h6 {[%clk 00:04:15]} {[%emt 00:00:26]} 9. Nxf6+ {[%clk 00:04:39]}
{[%emt 00:00:28]} Qxf6 {[%clk 00:04:15]} {[%emt 00:00:03]} 10. Bd5 {[%clk
00:04:39]} Rb8 {[%clk 00:04:09]} {[%emt 00:00:10]} 11. O-O {[%clk 00:04:25]}
{[%emt 00:00:17]} Ne7 {[%clk 00:04:07]} {[%emt 00:00:05]} 12. Bb3 {[%clk
00:04:24]} {[%emt 00:00:04]} d6 {[%clk 00:04:07]} {[%emt 00:00:03]} 13. Ne1
{[%clk 00:03:26]} {[%emt 00:01:00]} Ng6 {[%clk 00:03:47]} {[%emt 00:00:24]} 14.
d3 {[%clk 00:03:26]} {[%emt 00:00:02]} h5 {[%clk 00:03:28]} {[%emt 00:00:23]}
15. Be3 {[%clk 00:03:13]} {[%emt 00:00:16]} h4 {[%clk 00:03:18]} {[%emt
00:00:12]} 16. Qd2 {[%clk 00:03:13]} {[%emt 00:00:02]} Nf4 {[%clk 00:02:53]}
{[%emt 00:00:28]} 17. Bxc5 {[%clk 00:02:48]} {[%emt 00:00:29]} dxc5 {[%clk
00:02:53]} {[%emt 00:00:02]} 18. Qe3 {[%clk 00:02:31]} {[%emt 00:00:20]} Rh5
{[%clk 00:02:32]} {[%emt 00:00:25]} 19. Kh1 {[%clk 00:02:23]} {[%emt 00:00:11]}
Rg5 {[%clk 00:02:14]} {[%emt 00:00:20]} 20. g3 {[%clk 00:02:12]} {[%emt
00:00:14]} Bh3 {[%clk 00:01:00]} {[%emt 00:01:17]} 21. gxf4 {[%clk 00:01:57]}
{[%emt 00:00:19]} Bxf1 {[%clk 00:00:47]} {[%emt 00:00:16]} 22. fxg5 {[%clk
00:01:57]} {[%emt 00:00:02]} Qg6 {[%clk 00:00:31]} {[%emt 00:00:18]} 23. Nf3
{[%clk 00:01:53]} {[%emt 00:00:06]} Bh3 {[%clk 00:00:30]} {[%emt 00:00:04]} 24.
Nxe5 {[%clk 00:01:29]} {[%emt 00:00:27]} Qd6 {[%clk 00:00:30]} {[%emt
00:00:02]} 25. Nxf7 {[%clk 00:01:09]} {[%emt 00:00:23]} Qd7 {[%clk 00:00:18]}
{[%emt 00:00:14]} 26. Ne5 {[%clk 00:01:09]} {[%emt 00:00:01]} Qc8 {[%clk
00:00:18]} {[%emt 00:00:02]} 27. f4 {[%clk 00:01:09]} {[%emt 00:00:03]} Be6
{[%clk 00:00:18]} {[%emt 00:00:03]} 28. f5 {[%clk 00:01:06]} {[%emt 00:00:06]}
Bxb3 {[%clk 00:00:18]} {[%emt 00:00:02]} 29. cxb3 {[%clk 00:01:06]} Qd8 {[%clk
00:00:18]} {[%emt 00:00:03]} 30. Qxc5 {[%clk 00:00:58]} {[%emt 00:00:12]} Rb6
{[%clk 00:00:14]} {[%emt 00:00:07]} 31. Qc4 {[%clk 00:00:51]} {[%emt 00:00:09]}
Ke7 {[%clk 00:00:05]} {[%emt 00:00:12]} 32. Qf7+ {[%emt 00:00:02]} 1-0

[Event "15e Open International de Quenza"]
[Site "Quenza"]
[Date "2026.07.05"]
[Round "9.10"]
[White "TOMASI, Albert"]
[Black "BRODOWSKI, Piotr"]
[Result "1-0"]
[TimeControl "5min+3s"]
[WhiteTitle "FM"]
[BlackTitle "IM"]
[WhiteFideId "-"]
[BlackFideId "-"]
[WhiteElo "2235"]
[BlackElo "2435"]

1. e4 {[%clk 00:05:03]} {[%emt 00:00:02]} g6 {[%clk 00:05:03]} {[%emt
00:00:02]} 2. d4 {[%clk 00:05:03]} {[%emt 00:00:02]} Bg7 {[%clk 00:05:03]}
{[%emt 00:00:01]} 3. Nf3 {[%clk 00:05:03]} {[%emt 00:00:02]} d6 {[%clk
00:05:03]} 4. Be3 {[%clk 00:05:02]} {[%emt 00:00:05]} a6 {[%clk 00:05:03]}
{[%emt 00:00:02]} 5. Nc3 {[%clk 00:05:01]} {[%emt 00:00:04]} Nd7 {[%clk
00:04:47]} {[%emt 00:00:20]} 6. Qd2 {[%clk 00:04:50]} {[%emt 00:00:13]} b5
{[%clk 00:04:45]} {[%emt 00:00:05]} 7. h4 {[%clk 00:04:50]} {[%emt 00:00:02]}
h6 {[%clk 00:04:45]} {[%emt 00:00:01]} 8. Bd3 {[%clk 00:04:21]} {[%emt
00:00:31]} Bb7 {[%clk 00:04:45]} {[%emt 00:00:02]} 9. O-O-O {[%clk 00:04:19]}
{[%emt 00:00:05]} Nb6 {[%clk 00:04:24]} {[%emt 00:00:25]} 10. e5 {[%clk
00:04:09]} {[%emt 00:00:13]} e6 {[%clk 00:03:50]} {[%emt 00:00:37]} 11. Qe2
{[%clk 00:03:14]} {[%emt 00:00:58]} Ne7 {[%clk 00:03:40]} {[%emt 00:00:13]} 12.
Kb1 {[%clk 00:02:42]} {[%emt 00:00:35]} Ned5 {[%clk 00:03:38]} {[%emt
00:00:05]} 13. Nxd5 {[%clk 00:02:41]} {[%emt 00:00:04]} Bxd5 {[%clk 00:03:37]}
{[%emt 00:00:04]} 14. Bf4 {[%clk 00:02:34]} {[%emt 00:00:10]} Qd7 {[%clk
00:03:35]} {[%emt 00:00:05]} 15. Rhg1 {[%clk 00:02:20]} {[%emt 00:00:16]} O-O-O
{[%clk 00:02:56]} {[%emt 00:00:42]} 16. Nd2 {[%clk 00:02:20]} {[%emt 00:00:01]}
Qc6 {[%clk 00:02:23]} {[%emt 00:00:37]} 17. b3 {[%clk 00:02:12]} {[%emt
00:00:10]} Qb7 {[%clk 00:02:22]} {[%emt 00:00:04]} 18. f3 {[%clk 00:02:07]}
{[%emt 00:00:08]} c5 {[%clk 00:02:07]} {[%emt 00:00:18]} 19. exd6 {[%clk
00:01:42]} {[%emt 00:00:29]} Bxd4 {[%clk 00:02:07]} {[%emt 00:00:01]} 20. Rge1
{[%clk 00:01:39]} {[%emt 00:00:06]} e5 {[%clk 00:01:47]} {[%emt 00:00:23]} 21.
Bg3 {[%clk 00:01:37]} {[%emt 00:00:05]} Rhe8 {[%clk 00:01:17]} {[%emt
00:00:34]} 22. h5 {[%clk 00:01:18]} {[%emt 00:00:21]} Rxd6 {[%clk 00:01:09]}
{[%emt 00:00:10]} 23. Ne4 {[%clk 00:01:18]} {[%emt 00:00:02]} Qc7 {[%clk
00:00:53]} {[%emt 00:00:20]} 24. Nxd6+ {[%clk 00:00:55]} {[%emt 00:00:26]} Qxd6
{[%clk 00:00:53]} {[%emt 00:00:01]} 25. Qd2 {[%clk 00:00:48]} {[%emt 00:00:09]}
c4 {[%clk 00:00:46]} {[%emt 00:00:10]} 26. Be4 {[%clk 00:00:48]} c3 {[%clk
00:00:46]} {[%emt 00:00:02]} 27. Qxd4 {[%clk 00:00:46]} {[%emt 00:00:05]} Na4
{[%clk 00:00:34]} {[%emt 00:00:15]} 28. Qxd5 {[%clk 00:00:42]} {[%emt
00:00:07]} Qa3 {[%clk 00:00:34]} 29. Qb7# {[%emt 00:00:01]} 1-0

[Event "15e Open International de Quenza"]
[Site "Quenza"]
[Date "2026.07.05"]
[Round "9.15"]
[White "LOVICHI, Raphael"]
[Black "UTRERA, Ludovic"]
[Result "0-1"]
[TimeControl "5min+3s"]
[WhiteTitle "-"]
[BlackTitle "-"]
[WhiteFideId "-"]
[BlackFideId "-"]
[WhiteElo "1824"]
[BlackElo "2067"]

1. e4 {[%clk 00:05:03]} c6 {[%clk 00:05:03]} 2. Nf3 {[%clk 00:05:03]} {[%emt
00:00:02]} d5 {[%clk 00:05:03]} {[%emt 00:00:01]} 3. Nc3 {[%clk 00:05:03]} dxe4
{[%clk 00:05:03]} {[%emt 00:00:03]} 4. Nxe4 {[%clk 00:05:03]} Nf6 {[%clk
00:05:03]} {[%emt 00:00:01]} 5. Qe2 {[%clk 00:05:01]} {[%emt 00:00:06]} Nxe4
{[%clk 00:05:03]} {[%emt 00:00:02]} 6. Qxe4 {[%emt 00:00:01]} Nd7 7. Bc4 {[%clk
00:05:01]} {[%emt 00:00:03]} Nf6 {[%clk 00:05:03]} 8. Ne5 e6 9. Qe3 {[%clk
00:04:29]} {[%emt 00:00:35]} Bd6 {[%clk 00:04:55]} {[%emt 00:00:12]} 10. d4
{[%clk 00:04:25]} {[%emt 00:00:06]} O-O {[%clk 00:04:24]} {[%emt 00:00:35]} 11.
O-O {[%clk 00:04:25]} {[%emt 00:00:02]} Re8 {[%clk 00:04:11]} {[%emt 00:00:17]}
12. Qf3 {[%clk 00:03:42]} {[%emt 00:00:46]} Qc7 {[%clk 00:03:59]} {[%emt
00:00:14]} 13. Re1 {[%clk 00:03:31]} {[%emt 00:00:13]} c5 {[%clk 00:03:51]}
{[%emt 00:00:12]} 14. Bg5 {[%clk 00:02:30]} {[%emt 00:01:04]} Nd5 {[%clk
00:03:51]} {[%emt 00:00:01]} 15. Bb5 {[%clk 00:02:23]} {[%emt 00:00:10]} Rf8
{[%clk 00:03:47]} {[%emt 00:00:07]} 16. Ng4 {[%clk 00:02:08]} {[%emt 00:00:18]}
cxd4 {[%clk 00:03:38]} {[%emt 00:00:13]} 17. Bd3 {[%clk 00:01:36]} {[%emt
00:00:34]} f5 {[%clk 00:03:38]} {[%emt 00:00:02]} 18. Qh3 {[%clk 00:01:15]}
{[%emt 00:00:24]} Bf4 {[%clk 00:02:57]} {[%emt 00:00:44]} 19. Bh4 {[%clk
00:00:09]} {[%emt 00:01:09]} fxg4 {[%clk 00:02:53]} {[%emt 00:00:06]} 20. Qxg4
{[%clk 00:00:09]} e5 {[%clk 00:02:30]} {[%emt 00:00:27]} 21. Qh5 {[%clk
00:00:09]} {[%emt 00:00:01]} g6 {[%clk 00:02:30]} {[%emt 00:00:02]} 22. Qf3
{[%emt 00:00:02]} 0-1

[Event "15e Open International de Quenza"]
[Site "Quenza"]
[Date "2026.07.05"]
[Round "9.17"]
[White "DELADERRIERE, Helio"]
[Black "BERNARDI, Nicolas"]
[Result "1/2-1/2"]
[TimeControl "5min+3s"]
[WhiteTitle "-"]
[BlackTitle "-"]
[WhiteFideId "-"]
[BlackFideId "-"]
[WhiteElo "2015"]
[BlackElo "1739"]

1. d4 {[%emt 00:16:46]} d5 {[%emt 00:00:03]} 2. c4 e6 {[%emt 00:00:02]} 3. Nf3
{[%emt 00:00:02]} Nf6 {[%emt 00:00:01]} 4. g3 Nbd7 {[%emt 00:00:14]} 5. Bg2 Be7
{[%emt 00:00:12]} 6. O-O {[%emt 00:00:02]} O-O {[%emt 00:00:04]} 7. Nc3 {[%emt
00:00:01]} c6 {[%emt 00:00:10]} 8. Qc2 {[%emt 00:00:01]} Re8 {[%emt 00:00:19]}
9. e4 {[%emt 00:00:03]} dxe4 {[%emt 00:00:06]} 10. Nxe4 Nxe4 {[%emt 00:00:05]}
11. Qxe4 {[%emt 00:00:02]} Nf6 12. Qc2 {[%emt 00:00:01]} h6 {[%emt 00:00:23]}
13. Bf4 {[%emt 00:00:07]} c5 {[%emt 00:00:28]} 14. Rad1 {[%emt 00:00:05]} Qb6
{[%emt 00:00:02]} 15. Rfe1 {[%emt 00:00:16]} Bd7 {[%emt 00:00:42]} 16. b3
{[%emt 00:00:15]} Bc6 {[%emt 00:00:11]} 17. Be5 {[%emt 00:00:12]} Rad8 {[%emt
00:00:09]} 18. Qc3 {[%emt 00:00:17]} cxd4 {[%emt 00:00:18]} 19. Bxd4 {[%emt
00:00:06]} Bc5 {[%emt 00:00:23]} 20. Bxc5 {[%emt 00:00:42]} Qxc5 {[%emt
00:00:03]} 21. b4 {[%emt 00:00:42]} Qb6 {[%emt 00:00:15]} 22. Ne5 {[%emt
00:00:24]} Bxg2 {[%emt 00:00:08]} 23. Kxg2 {[%emt 00:00:01]} Ne4 {[%emt
00:00:56]} 24. Qc2 {[%emt 00:00:01]} Nf6 {[%emt 00:00:06]} 25. a3 {[%emt
00:00:12]} Rxd1 {[%emt 00:00:09]} 26. Rxd1 {[%emt 00:00:02]} Rd8 {[%emt
00:00:02]} 27. c5 {[%emt 00:00:32]} Qc7 28. Rxd8+ Qxd8 29. Qd3 Qxd3 {[%emt
00:00:03]} 30. Nxd3 Kf8 {[%emt 00:00:08]} 31. f4 {[%emt 00:00:07]} Ke7 {[%emt
00:00:01]} 32. Kf3 Nd5 {[%emt 00:00:03]} 33. Ke4 {[%emt 00:00:36]} Nc3+ {[%emt
00:00:03]} 34. Kd4 {[%emt 00:00:03]} Nb5+ {[%emt 00:00:01]} 35. Ke4 {[%emt
00:00:14]} Nxa3 {[%emt 00:00:04]} 36. f5 Nb5 {[%emt 00:00:12]} 37. g4 {[%emt
00:00:07]} Nc3+ {[%emt 00:00:05]} 38. Kd4 {[%emt 00:00:07]} Nd5 39. b5 {[%emt
00:00:08]} Nc7 {[%emt 00:00:10]} 40. b6 {[%emt 00:00:28]} axb6 {[%emt
00:00:02]} 41. cxb6 Nd5 {[%emt 00:00:02]} 42. Kc5 Nxb6 {[%emt 00:00:13]} 43.
Kxb6 exf5 {[%emt 00:00:02]} 44. gxf5 {[%emt 00:00:09]} Kf6 45. Kxb7 {[%emt
00:00:04]} Kxf5 46. Kc6 {[%emt 00:00:02]} Ke4 {[%emt 00:00:03]} 47. Nc5+ {[%emt
00:00:03]} Ke5 {[%emt 00:00:02]} 48. Nd7+ {[%emt 00:00:02]} Kf4 {[%emt
00:00:05]} 49. Kd5 {[%emt 00:00:02]} Kg4 {[%emt 00:00:05]} 50. Ne5+ {[%emt
00:00:01]} Kh3 {[%emt 00:00:02]} 51. Nxf7 {[%emt 00:00:01]} Kxh2 52. Ke4 {[%emt
00:00:02]} Kh3 {[%emt 00:00:04]} 53. Kf5 {[%emt 00:00:01]} Kh4 {[%emt
00:00:03]} 54. Kg6 {[%emt 00:00:05]} h5 {[%emt 00:00:05]} 55. Ne5 {[%emt
00:00:01]} Kg3 {[%emt 00:00:05]} 56. Kxh5 g5 {[%emt 00:00:01]} 57. Kxg5 {[%emt
00:00:01]} 1/2-1/2